bitfinex/quotes_ETHUSD_20251017
["timestamp","ask_amount","ask_price","bid_price","bid_amount"]
[1760716719455,0.1312,3800.7,3800.6,2.6311635]
[1760716719743,0.1312,3800.7,3800.1,0.001]
[1760716720044,0.1312,3800.5,3800.4,2.63130196]
[1760716720944,0.002,3800.9,3800.6,2.63114653]
[1760716721155,0.1312,3800.7,3800.1,0.001]
[1760716721360,0.1312,3800.7,3800.1,0.31197957]
[1760716721674,0.1312,3800.7,3800.2,2.63144045]
[1760716721826,0.1312,3800.7,3800.6,2.6311635]
[1760716722166,0.002,3800.9,3800.2,2.63140456]
[1760716722372,0.002,3800.9,3800.1,0.001]
[1760716722373,0.1312,3800.4,3800.3,2.6313712]
[1760716723375,0.1312,3800.4,3800.1,0.001]
[1760716723557,0.4726,3800.3,3800.1,0.001]
[1760716723876,0.4726,3800.8,3800.2,2.63144045]
[1760716724024,0.78772891,3800.8,3800.2,2.6313949]
[1760716724226,0.4726,3800.8,3800.3,2.63136636]
[1760716724570,0.4726,3800.7,3800.2,2.63142308]
[1760716724770,2.67886368,3800.9,3800.3,2.63137082]
[1760716724953,0.4726,3800.6,3800.3,2.63137082]
[1760716725159,0.1312,3800.3,3800.2,2.63142278]
[1760716725465,0.1312,3800.2,3800.1,2.63250969]
[1760716725650,0.1312,3800.2,3800.1,0.001]
[1760716725841,0.1312,3800.2,3800.1,2.63250969]
[1760716726730,0.1312,3800.2,3800.1,0.001]
[1760716727063,0.1312,3800.2,3800.1,2.63250969]
[1760716728870,0.1304,3800.2,3800.1,2.63250969]
[1760716731364,0.1304,3800.2,3800.1,0.001]
[1760716731565,0.1304,3800.2,3800.1,2.63250969]
[1760716732250,0.41273216,3800.7,3800.1,0.52751541]
[1760716732452,0.54393216,3800.7,3800.6,2.6311635]
[1760716732653,0.04786545,3800.9,3800.8,2.63102504]
[1760716733252,0.002,3800.9,3800.8,2.63102504]
[1760716733569,0.002,3800.9,3800.1,0.001]
[1760716733868,0.002,3800.9,3800.8,2.63102504]
[1760716734275,0.002,3800.9,3800.7,2.63107561]
[1760716734437,0.002,3800.9,3800.8,2.63102504]
[1760716734633,0.002,3800.9,3800.1,0.001]
[1760716734935,0.002,3800.9,3800.5,2.63119115]
[1760716735151,0.002,3800.9,3800.4,2.63129138]
[1760716735355,0.4322,3800.8,3800.3,2.63132698]
[1760716735668,0.002,3800.9,3800.5,2.63118162]
[1760716735870,0.002,3800.9,3800.2,2.63144045]
[1760716736069,0.002,3800.9,3800.1,0.001]
[1760716736070,0.4322,3800.8,3800.3,2.63131734]
[1760716736254,0.4322,3800.8,3800.4,2.63129624]
[1760716736457,0.002,3800.9,3800.5,2.63118842]
[1760716736857,0.4342,3800.9,3800.5,2.63118842]
[1760716737061,0.002,3800.9,3800.8,2.63102504]
[1760716737679,0.6539,3800.9,3800.1,0.001]
[1760716737894,0.2217,3800.9,3800.6,2.6311538]
[1760716738172,0.002,3800.9,3800.1,0.02731509]
[1760716738374,0.002,3800.9,3800.8,2.63102504]
[1760716739669,1.43354414,3801.8,3801.5,2.63054057]
[1760716739866,0.6519,3804.1,3802.3,1.728]
[1760716739867,0.4322,3803.6,3802.3,1.728]
[1760716740066,0.04585158,3803.2,3801.6,0.83461679]
[1760716740239,0.4322,3803.3,3801.9,2.63026381]
[1760716740444,0.4322,3803.3,3802.8,2.62958793]
[1760716740646,0.4322,3803.2,3803.0,2.62944638]
[1760716740962,0.4322,3803.2,3803.1,2.62943388]
[1760716741365,0.2,3803.8,3802.0,2.63013655]
[1760716741366,0.2,3803.8,3802.2,0.6336]
[1760716741611,0.2,3803.8,3803.6,2.62902322]
[1760716741883,0.4322,3803.7,3803.5,2.62914593]
[1760716742182,0.4494,3803.6,3803.1,2.62943146]
[1760716742481,0.4494,3803.5,3801.7,0.6336]
[1760716742677,0.1312,3803.0,3802.8,2.62957784]
[1760716742884,0.1312,3803.0,3802.5,2.62978453]
[1760716742885,0.6772,3802.9,3802.1,2.63012459]
[1760716743082,0.1312,3802.4,3802.3,2.62998711]
[1760716743955,0.2278,3802.9,3802.0,0.1312]
[1760716744281,0.1312,3802.6,3802.5,2.62984878]
[1760716744479,0.4494,3802.6,3802.1,2.63012545]
[1760716744648,0.4494,3802.6,3802.5,2.62984878]
[1760716744849,0.2278,3802.9,3802.7,2.629683]
[1760716745154,0.6494,3803.8,3803.3,2.62924201]
[1760716745381,0.1312,3803.3,3803.1,2.62941238]
[1760716745583,0.1312,3803.3,3803.2,2.62936474]
[1760716745789,0.1312,3803.3,3802.7,0.1312]
[1760716745988,0.1312,3803.3,3803.2,2.62936474]
[1760716747514,0.2,3803.8,3803.3,2.62929561]
[1760716747702,0.2,3803.8,3803.7,2.62901911]
[1760716748772,0.2,3803.8,3803.7,2.6553093]
[1760716748968,0.2,3803.8,3803.7,2.62901911]
[1760716751379,0.2,3803.8,3803.7,2.6553093]
[1760716751576,1e-08,3803.8,3803.7,19.20037127]
[1760716752498,1e-08,3803.8,3803.7,20.92837127]
[1760716753012,0.44860001,3805.4,3803.8,2.3616]
[1760716753174,0.2278,3805.6,3803.8,2.3616]
[1760716753175,0.2278,3804.9,3804.2,2.62861681]
[1760716753374,0.2278,3804.9,3804.5,2.6284398]
[1760716753770,0.002,3804.2,3804.1,2.62867913]
[1760716754509,0.002,3804.2,3804.1,3.15705897]
[1760716754892,0.002,3804.2,3804.1,3.18334639]
[1760716755111,0.002,3804.2,3804.1,4.91134639]
[1760716755298,0.002,3804.2,3804.1,5.51865897]
[1760716757485,0.002,3804.2,3804.1,5.64985897]
[1760716757875,0.002,3804.2,3804.1,5.51865897]
[1760716758574,0.86158116,3806.5,3805.8,2.62751798]
[1760716758575,0.2278,3806.3,3805.8,2.62751798]
[1760716758787,0.41218116,3806.5,3805.0,0.6336]
[1760716759015,0.41218116,3806.5,3806.4,2.62715426]
[1760716759217,0.04580504,3806.9,3806.8,2.62687821]
[1760716759515,0.2278,3807.8,3807.7,2.60629732]
[1760716759680,0.27358719,3807.8,3806.5,0.6336]
[1760716759878,0.27358719,3807.8,3807.3,2.62652262]
[1760716759879,0.2278,3807.8,3807.3,2.62652262]
[1760716760093,0.4494,3807.7,3807.6,2.62631418]
[1760716760322,0.2278,3807.8,3807.7,2.62625732]
[1760716760892,0.4494,3808.1,3806.8,2.62686423]
[1760716761094,0.4494,3808.1,3806.9,0.26268642]
[1760716761295,0.4494,3808.0,3806.3,0.6336]
[1760716761483,0.2278,3807.9,3806.3,0.6336]
[1760716761686,0.2278,3807.9,3806.4,0.6336]
[1760716761991,3.08289699,3807.8,3806.1,3.26096134]
[1760716762293,0.7877697,3807.7,3806.2,4.49431323]
[1760716762498,0.7877697,3807.7,3807.0,2.62672269]
[1760716762696,2.95734757,3807.7,3806.8,2.62686603]
[1760716762993,0.3310697,3807.7,3807.1,2.6266569]
[1760716763185,0.3310697,3807.7,3806.3,0.6336]
[1760716763385,0.4567,3807.8,3807.5,2.62638785]
[1760716763678,0.4567,3807.7,3806.4,0.51279521]
[1760716763884,0.2278,3807.9,3806.6,0.6336]
[1760716764083,0.2278,3807.9,3807.6,2.62627779]
[1760716764317,0.94982951,3808.2,3808.1,2.62598146]
[1760716765616,0.94982951,3808.2,3807.2,15.40931067]
[1760716765924,0.94982951,3808.2,3806.6,18.03629935]
[1760716766098,1.40652951,3808.2,3807.7,2.62625476]
[1760716766280,1.40652951,3808.2,3806.6,15.40931067]
[1760716766281,0.94982951,3808.2,3807.8,2.62618087]
[1760716766485,0.22982951,3808.2,3807.7,2.62623928]
[1760716766717,0.22982951,3808.2,3807.7,2.62624335]
[1760716766904,0.22982951,3808.2,3807.8,0.02626188]
[1760716767105,0.22982951,3808.2,3808.1,2.62598146]
[1760716767418,0.22982951,3808.2,3807.5,0.6336]
[1760716767617,0.2357,3807.6,3805.8,15.40931067]
[1760716767816,0.5879,3807.5,3806.9,0.1312]
[1760716768022,0.5879,3807.5,3806.9,2.75798733]
[1760716768197,0.2357,3807.6,3805.7,0.6336]
[1760716768523,0.4567,3807.5,3805.2,18.03723616]
[1760716768686,0.4567,3807.4,3805.3,1.80372362]
[1760716768887,0.2357,3807.6,3805.5,1.728]
[1760716769087,0.4567,3807.3,3804.6,15.40931067]
[1760716769329,0.4567,3807.3,3803.9,0.12615808]
[1760716769330,0.4567,3807.2,3805.8,2.62752081]
[1760716769528,0.2357,3807.6,3806.6,2.62695646]
[1760716769691,0.2357,3807.6,3806.5,2.62703278]
[1760716769887,0.2357,3807.6,3806.8,2.62682043]
[1760716770224,0.2357,3807.6,3805.9,0.26275208]
[1760716770398,0.2357,3807.6,3806.7,2.62694128]
[1760716770601,0.33186984,3807.5,3806.7,2.62694128]
[1760716770821,0.78856984,3807.5,3806.6,2.62700225]
[1760716771025,0.78856984,3807.5,3805.9,0.26275208]
[1760716771225,0.4567,3807.5,3806.8,2.62682143]
[1760716771929,0.4567,3807.5,3805.9,0.26275208]
[1760716772230,0.4567,3807.5,3793.0,0.11678394]
[1760716772231,0.2357,3806.9,3805.2,0.0008]
[1760716772531,0.2357,3806.9,3805.9,2.6274421]
[1760716772712,0.6924,3806.9,3805.9,2.6274421]
[1760716772901,3.31921409,3806.9,3805.9,2.62743926]
[1760716773103,0.33192141,3806.8,3806.5,0.001]
[1760716773310,0.78862141,3806.8,3806.5,0.001]
[1760716773508,2.86251409,3806.9,3806.5,0.001]
[1760716773509,0.2357,3806.9,3806.5,0.001]
[1760716773737,0.4567,3806.7,3806.5,0.001]
[1760716773951,0.4567,3807.5,3806.5,0.001]
[1760716774096,0.4567,3807.5,3806.6,2.62696824]
[1760716774510,0.4567,3807.5,3806.5,0.001]
[1760716775094,0.2357,3806.6,3806.5,0.001]
[1760716775301,3.08310126,3807.5,3806.5,0.001]
[1760716775539,0.2357,3806.7,3806.5,0.001]
[1760716776598,0.4559,3806.6,3806.5,0.001]
[1760716778307,0.5871,3806.6,3806.5,0.001]
[1760716779228,0.2357,3806.9,3806.5,0.001]
[1760716779594,0.4567,3806.8,3806.5,0.001]
[1760716780617,0.2357,3806.9,3806.5,0.001]
[1760716780830,0.4567,3806.8,3806.5,0.001]
[1760716781744,0.2357,3806.9,3806.5,0.001]
[1760716782052,3.08366718,3806.7,3806.1,0.001]
[1760716782228,0.33193672,3806.6,3806.1,0.001]
[1760716782429,0.4567,3806.7,3806.1,0.001]
[1760716782735,2.62689631,3806.8,3806.1,0.001]
[1760716782968,0.73819281,3806.9,3806.1,0.001]
[1760716783319,3.36503623,3806.9,3806.1,0.001]
[1760716783521,2.62709365,3806.5,3806.1,0.001]
[1760716783826,0.26270936,3806.4,3806.1,0.001]
[1760716784027,3.34656402,3806.4,3806.1,0.001]
[1760716784232,0.26270936,3806.4,3806.1,0.001]
[1760716784473,3.08396548,3806.3,3806.1,0.001]
[1760716784921,0.4567,3806.2,3806.1,0.001]
[1760716785858,2.62696608,3806.7,3806.1,0.001]
[1760716785859,2.62710853,3806.5,3806.1,0.001]
[1760716786021,0.61228892,3806.5,3806.1,0.001]
[1760716786224,0.4567,3806.4,3806.1,0.001]
[1760716786438,3.08385481,3806.4,3806.1,0.001]
[1760716786658,2.62729231,3806.2,3806.1,0.001]
[1760716786861,3.0839456,3806.3,3806.1,0.001]
[1760716787059,0.82632345,3806.2,3806.1,0.001]
[1760716787270,3.08399231,3806.2,3806.1,0.001]
[1760716787781,2.62729231,3806.2,3806.1,0.001]
[1760716787983,3.08399231,3806.2,3806.1,0.001]
[1760716788558,0.4567,3806.2,3806.1,0.001]
[1760716788793,3.08399231,3806.2,3806.1,0.001]
[1760716788969,3.65968006,3806.2,3806.1,0.001]
[1760716791566,5.38768006,3806.2,3806.1,0.001]
[1760716793482,4.93098006,3806.2,3806.1,0.001]
[1760716793687,5.37698006,3806.2,3806.1,0.001]
[1760716794806,4.93098006,3806.2,3806.1,0.001]
[1760716794989,5.37698006,3806.2,3806.1,0.001]
[1760716795661,5.37698006,3806.2,3806.1,0.011]
[1760716798011,2.30368775,3806.2,3806.1,0.011]
[1760716798210,4.35529231,3806.2,3806.1,0.011]
[1760716798695,4.80129231,3806.2,3806.1,0.011]
[1760716800612,0.04580094,3806.6,3806.1,0.011]
[1760716800965,0.002,3806.7,3806.1,0.011]
[1760716801601,0.1312,3806.4,3806.1,0.011]
[1760716801797,0.1312,3806.4,3806.2,0.0026]
[1760716802471,0.1312,3806.4,3806.1,0.011]
[1760716802678,0.1312,3806.6,3806.1,0.0136]
[1760716803174,0.1312,3806.6,3806.1,0.011]
[1760716803410,0.4496,3806.5,3806.1,0.011]
[1760716803571,2.62729231,3806.2,3806.1,0.011]
[1760716803903,6.11811507,3806.2,3806.1,0.011]
[1760716804106,6.11811507,3806.2,3805.7,0.001]
[1760716804107,9.19301307,3806.2,3805.7,0.001]
[1760716804269,4.58996844,3805.8,3805.7,0.001]
[1760716804607,2.3616,3805.7,3803.1,0.0146]
[1760716804778,0.6336,3805.6,3803.1,0.0146]
[1760716804969,0.2344,3805.8,3803.1,0.0146]
[1760716804970,0.58136,3805.5,3803.2,1.58207428]
[1760716805300,2.62850937,3804.5,3803.2,1.55578064]
[1760716805603,0.2344,3804.4,3803.1,0.0146]
[1760716806087,0.2344,3804.4,3802.4,15.54320644]
[1760716806405,2.62872709,3804.2,3802.7,0.0146]
[1760716806589,2.62874848,3804.1,3802.7,0.0146]
[1760716806786,0.4496,3804.1,3802.8,0.26443611]
[1760716806987,0.41234309,3804.3,3802.9,0.04089572]
[1760716807188,0.41234309,3804.3,3802.9,0.0146]
[1760716807400,2.62893054,3803.9,3802.4,2.62986924]
[1760716807587,0.684,3803.8,3801.8,0.0156]
[1760716807765,0.684,3803.8,3801.9,0.02630263]
[1760716807966,0.2344,3804.4,3802.0,1.7426]
[1760716807967,1.728,3804.3,3802.0,1.7426]
[1760716808175,0.41242972,3804.1,3802.2,2.63005628]
[1760716808376,0.41242972,3804.1,3802.1,0.0146]
[1760716808377,0.04582588,3804.7,3803.0,15.54320644]
[1760716808601,0.04582588,3804.7,3803.4,2.62922207]
[1760716808899,0.4496,3804.6,3803.5,0.26292221]
[1760716809066,0.2344,3803.6,3802.2,2.64461588]
[1760716809292,0.2344,3804.2,3802.9,2.62956849]
[1760716809485,0.2344,3804.2,3803.0,0.04089503]
[1760716809694,0.2344,3804.6,3803.1,2.64402591]
[1760716809895,0.4496,3804.5,3803.1,0.0146]
[1760716810095,0.86193338,3804.4,3802.7,2.62965225]
[1760716810295,2.62888497,3803.9,3802.8,0.26296522]
[1760716810511,0.41233338,3804.4,3802.1,1.728]
[1760716810696,0.41233338,3804.4,3802.8,15.54320644]
[1760716810895,0.0458202,3804.5,3803.0,0.6336]
[1760716811095,0.0458202,3804.5,3801.0,0.001]
[1760716811297,15.54320644,3803.9,3801.4,0.001]
[1760716811498,2.00392064,3803.8,3802.1,0.001]
[1760716811698,0.4496,3803.8,3802.1,0.001]
[1760716811897,0.0458309,3803.6,3802.1,0.001]
[1760716812188,2.62962402,3802.9,3802.1,0.001]
[1760716812501,2.62880754,3804.1,3802.2,2.64465628]
[1760716812690,2.62897732,3803.8,3802.2,0.0146]
[1760716812891,1.728,3803.9,3802.3,0.26456624]
[1760716813199,0.4496,3804.0,3802.4,0.02629917]
[1760716813500,0.04582959,3804.1,3802.5,0.0146]
[1760716813700,0.04582959,3804.1,3802.5,0.04089848]
[1760716813914,0.04582959,3804.1,3802.6,16.19140644]
[1760716814120,0.2344,3804.9,3803.2,2.62936474]
[1760716814431,2.6283889,3804.7,3803.3,1.81725712]
[1760716814612,0.684,3804.9,3803.4,0.02629226]
[1760716814926,3.31222514,3804.9,3803.1,0.0146]
[1760716815125,2.6282629,3804.8,3803.3,2.62928592]
[1760716815331,0.2344,3804.9,3803.4,0.02629226]
[1760716815630,0.2344,3805.8,3802.7,1.728]
[1760716815631,0.2344,3805.4,3803.6,15.54320644]
[1760716815795,0.4122864,3805.6,3804.6,2.628392]
[1760716815994,0.002,3805.7,3804.7,0.02628328]
[1760716816526,0.002,3805.7,3804.7,0.04088328]
[1760716816695,0.002,3805.7,3804.2,0.6336]
[1760716816889,0.002,3805.7,3804.3,1.63228064]
[1760716817319,0.002,3805.7,3804.4,0.04088535]
[1760716817507,0.002,3805.7,3804.9,2.62813611]
[1760716817709,0.002,3805.7,3805.0,2.62807877]
[1760716817909,0.002,3805.7,3805.3,2.62789865]
[1760716818090,0.002,3805.7,3804.4,1.728]
[1760716818289,0.002,3805.7,3804.4,0.0146]
[1760716818522,0.002,3805.7,3804.5,2.62846628]
[1760716818723,0.002,3805.7,3804.4,0.6482]
[1760716818894,0.002,3805.7,3804.7,2.62831719]
[1760716819094,0.002,3805.7,3805.2,2.62792879]
[1760716819313,0.002,3805.7,3805.3,0.02627913]
[1760716819531,0.002,3805.7,3805.2,2.62793234]
[1760716819695,0.002,3805.7,3805.2,2.64258017]
[1760716819896,0.002,3805.7,3805.2,2.62798017]
[1760716820231,0.002,3805.7,3804.7,2.62827206]
[1760716820478,0.002,3805.7,3804.5,2.64305261]
[1760716820479,0.002,3805.7,3804.5,2.3762]
[1760716820591,0.002,3805.7,3804.5,0.0146]
[1760716820942,0.002,3805.7,3804.1,2.782]
[1760716821108,0.002,3805.7,3804.3,0.0146]
[1760716821618,0.002,3805.7,3804.4,1.728]
[1760716821936,0.002,3805.7,3803.5,0.0146]
[1760716821937,3.05520653,3805.6,3803.5,0.0146]
[1760716822090,2.6279626,3805.3,3803.5,2.64372797]
[1760716822295,0.47330592,3805.5,3803.5,0.0146]
[1760716822616,0.002,3805.7,3803.7,15.54320644]
[1760716822823,0.002,3805.7,3804.3,24.504263]
[1760716823025,0.002,3805.7,3803.8,0.04088949]
[1760716823026,0.002,3805.7,3805.6,2.62770653]
[1760716823340,0.002,3805.7,3805.6,3.30218359]
[1760716823491,0.002,3806.1,3806.0,2.62743037]
[1760716823697,0.002,3806.1,3806.0,2.75863037]
[1760716823896,0.002,3806.1,3806.0,0.1312]
[1760716824318,0.002,3806.1,3806.0,3.09785825]
[1760716824711,0.002,3806.1,3806.0,3.11045825]
[1760716825035,0.002,3806.1,3804.8,0.0126]
[1760716825199,0.002,3806.1,3804.4,0.0126]
[1760716825394,0.4275,3806.0,3803.8,0.0126]
[1760716825721,2.62775499,3805.6,3803.8,0.0126]
[1760716825920,0.4275,3805.5,3803.8,0.0126]
[1760716826234,0.4275,3805.5,3803.9,2.62881235]
[1760716826533,0.002,3806.1,3804.5,15.54320644]
[1760716826742,0.002,3806.1,3805.1,2.62805182]
[1760716826930,0.002,3806.1,3806.0,2.62743037]
[1760716827294,0.002,3806.1,3806.0,3.27363037]
[1760716827812,0.002,3806.1,3806.0,3.29990467]
[1760716828016,0.002,3806.1,3806.0,9.44950589]
[1760716828417,0.002,3806.1,3806.0,29.39491989]
[1760716828736,0.002,3806.1,3806.0,25.74698989]
[1760716828954,0.002,3806.1,3806.0,5.87247689]
[1760716829650,0.002,3806.1,3806.0,8.93801989]
[1760716829806,0.002,3806.1,3806.0,9.40972789]
[1760716830007,0.4275,3809.6,3806.9,1.728]
[1760716830227,0.2331,3808.6,3808.0,2.62598365]
[1760716830426,0.2331,3808.8,3808.1,2.62598146]
[1760716830638,0.2331,3808.8,3808.1,5.40698146]
[1760716830840,0.2331,3809.1,3808.1,6.04058146]
[1760716831139,0.2331,3809.1,3808.1,4.14010853]
[1760716831340,0.2331,3808.9,3808.1,6.90850853]
[1760716831527,0.2331,3808.9,3808.1,4.12750853]
[1760716831728,0.04576774,3809.4,3808.1,6.92010853]
[1760716832041,0.41182361,3809.8,3808.1,22.70131497]
[1760716832209,0.2331,3809.6,3808.1,5.23450853]
[1760716832541,0.41182361,3809.8,3808.1,29.01140997]
[1760716832741,0.003,3810.0,3808.9,33.09788735]
[1760716832955,0.003,3810.0,3808.9,21.82023635]
[1760716833122,0.003,3810.0,3808.9,4.54902991]
[1760716833449,0.2331,3809.8,3808.9,6.70442991]
[1760716833757,0.2331,3809.8,3808.9,1.9236]
[1760716833940,0.2331,3809.8,3808.9,7.53038991]
[1760716834247,0.2331,3809.8,3808.9,4.74138991]
[1760716834455,0.003,3810.0,3808.9,7.54198991]
[1760716834756,0.003,3810.0,3808.9,14.50108091]
[1760716834961,0.003,3810.0,3809.4,2.3616]
[1760716835107,0.003,3810.0,3809.9,2.7559408]
[1760716835305,0.003,3810.0,3809.9,6.1775408]
[1760716835764,0.003,3810.0,3809.9,6.1785408]
[1760716836084,0.003,3810.4,3809.9,6.1785408]
[1760716836085,0.003,3810.4,3810.1,3.25820302]
[1760716836233,0.003,3810.4,3810.3,3.25806526]
[1760716836432,0.003,3810.4,3810.3,4.98606526]
[1760716836667,0.2331,3812.2,3810.9,0.6336]
[1760716836877,0.2331,3812.2,3811.3,2.3616]
[1760716837177,0.2331,3812.7,3811.8,0.6336]
[1760716837383,0.2331,3812.7,3812.0,0.6336]
[1760716837540,0.2331,3812.7,3812.1,2.62316138]
[1760716837734,0.2331,3813.1,3812.4,2.62300354]
[1760716837935,0.04573787,3813.4,3812.5,0.6336]
[1760716838160,0.2331,3813.8,3813.1,0.6336]
[1760716838371,0.2331,3813.9,3812.9,0.6336]
[1760716838569,0.2331,3813.9,3813.0,0.6336]
[1760716838779,0.2331,3814.3,3813.4,0.6336]
[1760716838985,0.2331,3813.5,3812.9,1.89658064]
[1760716839138,0.2331,3813.5,3812.4,3.25661783]
[1760716839350,0.2331,3813.5,3812.1,2.62322593]
[1760716839561,0.2331,3813.5,3812.5,0.6336]
[1760716839764,0.2331,3814.3,3812.7,0.6336]
[1760716839765,0.2331,3813.8,3812.7,0.6336]
[1760716840188,0.2331,3813.8,3812.9,0.6336]
[1760716840395,0.2331,3813.8,3812.9,3.72944893]
[1760716840597,0.2331,3813.8,3813.1,0.6336]
[1760716840766,0.2331,3814.3,3813.1,0.6336]
[1760716840951,0.003,3814.4,3813.3,1.728]
[1760716841295,0.003,3814.4,3813.2,1.728]
[1760716841296,0.4275,3814.3,3813.2,1.728]
[1760716841495,0.4275,3814.3,3812.4,1.7406]
[1760716841669,0.4275,3814.3,3812.3,15.54320644]
[1760716841670,0.4275,3814.3,3812.7,0.6336]
[1760716841985,0.4275,3814.3,3812.6,1.728]
[1760716841986,0.003,3814.4,3813.6,0.6336]
[1760716842204,0.003,3814.4,3813.6,3.4226]
[1760716842351,0.003,3814.4,3812.9,1.728]
[1760716842352,0.003,3814.4,3813.4,2.62229796]
[1760716842556,0.003,3814.4,3813.6,0.6336]
[1760716842894,0.003,3814.4,3813.8,0.6336]
[1760716843597,0.003,3814.4,3814.3,3.25531302]
[1760716843765,0.003,3815.5,3814.5,3.25517556]
[1760716844092,0.003,3815.5,3814.9,8.18450868]
[1760716844294,0.003,3815.5,3815.4,4.98255717]
[1760716844495,0.13693281,3815.8,3815.7,9.3582231]
[1760716844697,0.13718455,3817.6,3816.2,1.728]
[1760716844859,0.13718455,3817.6,3817.0,2.61983265]
[1760716845060,0.13718455,3817.6,3816.4,2.3616]
[1760716845061,0.13718455,3817.6,3817.2,0.6336]
[1760716845260,0.13718455,3817.6,3815.9,0.53792667]
[1760716845261,0.4275,3817.5,3815.6,2.3616]
[1760716845464,0.4275,3817.5,3815.7,1.41072793]
[1760716845676,0.4275,3817.5,3815.4,2.791]
[1760716845677,0.4275,3817.5,3816.5,0.6336]
[1760716846074,0.2331,3817.7,3816.6,0.02620133]
[1760716846297,0.4335,3818.0,3817.0,0.6336]
[1760716846613,0.4335,3818.0,3817.4,2.3616]
[1760716846614,0.006,3818.0,3817.4,2.3616]
[1760716846908,0.5811911,3817.8,3817.1,2.3616]
[1760716847113,0.1536911,3817.8,3817.1,0.6336]
[1760716847286,0.1536911,3817.8,3817.1,2.69633233]
[1760716847624,0.1536911,3817.8,3817.0,2.61985009]
[1760716847625,0.1536911,3817.8,3816.9,2.3616]
[1760716847807,0.1536911,3817.8,3816.1,2.6204332]
[1760716847808,0.1536911,3817.8,3817.7,4.98097815]
[1760716848108,0.1536911,3817.8,3817.7,7.77397815]
[1760716848311,0.006,3818.0,3817.9,4.98084094]
[1760716848494,0.006,3818.0,3817.9,34.98084094]
[1760716848671,1e-08,3818.0,3817.9,37.61332047]
[1760716848877,1e-08,3818.4,3818.3,34.98056655]
[1760716849076,1e-08,3818.4,3818.3,35.33699628]
[1760716849372,0.04563276,3821.2,3818.1,2.61906687]
[1760716849373,0.12344939,3819.8,3819.7,0.6336]
[1760716849573,0.55094939,3819.8,3818.0,1.728]
[1760716849810,0.55094939,3819.8,3817.9,0.10491817]
[1760716849811,0.4275,3819.7,3818.1,0.18329182]
[1760716850106,0.12344939,3819.8,3818.3,1.728]
[1760716850311,0.12344939,3819.8,3818.4,3.4286]
[1760716850508,0.12344939,3819.8,3818.9,0.6336]
[1760716850728,0.12344939,3819.8,3819.3,0.6336]
[1760716850892,0.4275,3819.7,3816.6,3.80113019]
[1760716851093,0.12344939,3819.8,3817.8,13.161097]
[1760716851331,0.12344939,3819.8,3817.7,1.728]
[1760716851332,0.12344939,3819.8,3818.2,0.6336]
[1760716851491,0.4493,3819.7,3817.7,1.728]
[1760716851837,0.12344939,3819.8,3818.5,17.220313]
[1760716852030,0.12344939,3819.8,3819.1,2.3616]
[1760716852231,0.12344939,3819.8,3819.3,2.3616]
[1760716852457,0.12344939,3819.8,3819.5,0.6336]
[1760716852727,0.12344939,3819.8,3819.7,14.01235864]
[1760716852891,0.12344939,3819.8,3819.7,11.61927364]
[1760716853101,0.4493,3821.9,3820.3,2.61756173]
[1760716853428,0.4493,3821.9,3819.7,3.78533993]
[1760716853429,0.4493,3821.9,3820.5,0.6336]
[1760716853628,0.4493,3821.9,3819.7,3.15173993]
[1760716853629,0.4493,3821.6,3820.7,1.728]
[1760716853802,0.4493,3821.6,3820.8,2.797]
[1760716854128,0.2151,3820.9,3818.2,2.61897716]
[1760716854295,0.4493,3820.8,3819.1,1.728]
[1760716854491,0.2151,3820.9,3818.6,2.0]
[1760716854492,0.4493,3820.7,3818.6,2.0]
[1760716854689,0.4493,3820.6,3818.5,0.31563201]
[1760716854926,0.4493,3820.6,3817.6,17.597303]
[1760716855089,0.4493,3820.5,3817.9,2.61924094]
[1760716855293,0.4493,3820.4,3816.7,4.300105]
[1760716855494,0.2151,3820.9,3817.0,7.501944]
[1760716855495,0.4493,3820.3,3817.0,7.501944]
[1760716855696,2.61815338,3819.5,3817.1,0.02619789]
[1760716855948,0.26181534,3819.4,3816.5,10.873835]
[1760716856148,0.6644,3819.3,3817.5,2.61950498]
[1760716856445,0.4493,3819.2,3819.1,0.1304]
[1760716856641,0.4493,3819.2,3815.7,2.62070928]
[1760716856933,0.4493,3819.1,3818.7,0.1304]
[1760716857139,0.2151,3818.8,3818.7,0.1304]
[1760716857434,0.6644,3818.8,3818.7,0.1304]
[1760716857643,0.2151,3818.8,3818.7,0.1304]
[1760716857796,0.6644,3818.8,3818.7,0.1304]
[1760716859142,2.61888602,3818.5,3816.4,2.62023485]
[1760716859349,0.4493,3818.4,3816.2,2.62037113]
[1760716859663,0.4493,3818.4,3818.1,0.1304]
[1760716859817,0.54338349,3818.8,3818.3,0.1304]
[1760716859818,0.2151,3818.8,3818.3,0.1304]
[1760716860014,0.4493,3818.7,3818.3,0.1304]
[1760716860216,0.4493,3818.7,3816.7,0.131]
[1760716860469,0.4493,3818.7,3817.6,0.1304]
[1760716860619,0.2151,3818.8,3817.7,2.64555715]
[1760716860952,0.4493,3819.6,3817.8,0.26455572]
[1760716861125,0.4493,3819.6,3817.7,0.2614]
[1760716861451,0.4493,3819.2,3817.7,2.61932754]
[1760716861662,0.4493,3819.2,3817.8,0.02619309]
[1760716861885,0.2151,3820.0,3817.8,0.02619309]
[1760716861886,0.2151,3819.6,3818.3,1.728]
[1760716862021,0.2151,3819.6,3818.4,0.1304]
[1760716862356,0.2151,3820.0,3818.4,0.57813728]
[1760716862662,0.4468,3819.9,3818.4,1.8584]
[1760716862821,0.2151,3820.0,3818.6,1.728]
[1760716863024,0.2151,3820.0,3818.7,0.02618692]
[1760716863374,0.4468,3820.5,3818.9,2.61850157]
[1760716863667,0.4468,3820.5,3819.2,2.61834288]
[1760716863820,0.4468,3820.5,3818.9,2.61855508]
[1760716863821,0.4468,3820.5,3818.8,0.2614]